Cogmind - Beta 17.1 @@@ ROGUE MODE // 2026.09.09 @ 01:26:29 Player: TheSkyeDoctor Result: Destroyed by B-75 Beast with Heavy Plasma Cannon Performance ------------- Evolutions (4) 2000 Regions Visited (14) 2800 Robots Destroyed (103) 515 Value Destroyed (3529) 3529 Prototype IDs (30) 600 Alien Tech Used (0) 0 Bonus (1936) 1936 TOTAL SCORE: 11380 Bonus ------- High Alert Combat Kills 224 Follower Combat Kills 412 Entered Garrisons 200 Met Data Miner 300 Acquired ECA 300 MAIN.C Attacked Proxy Base 500 Cogmind --------- Core Integrity 0/850 Matter 295/300 Energy 61/100 System Corruption 2% Temperature Hot (217) Movement Core (350) Ox6 Location -6/Extension Parts ------- > --- POWER (1) -------- (None) > --- PROPULSION (5) --- (None) > --- UTILITY (6) ------ Large Storage Unit Improved Signal Interpreter Advanced Terrain Scan Processor Improved Target Analyzer Hacking Suite > --- WEAPON (3) ------- (None) > --- INVENTORY (15) --- Energy Well (350) High-capacity Matter Pod (200) Improved Terrain Scanner Encrypted Comm Array Peak State ------------ > --- POWER ------------ Angular Momentum Engine > --- PROPULSION ------- Improved VTOL Module Improved VTOL Module Improved VTOL Module Improved VTOL Module Nuclear Pulse Thruster > --- UTILITY ---------- High-capacity Storage Unit Improved Signal Interpreter EM Shield Hacking Suite Rainbow Chip > --- WEAPON ----------- Cooled Particle Cannon Cooled Particle Cannon Great Maul > --- INVENTORY -------- Improved VTOL Module Advanced Heat Sink High-capacity Battery High-capacity Matter Pod Improved Terrain Scanner Improved Terrain Scan Processor Improved Medium Armor Plating Improved Shield Generator System Shield Cooled Particle Cannon Gauss Rifle Missile Launcher Improved Datajack [Rating: 68] Favorites ----------- Power Light Deuterium Engine Engine Light Deuterium Engine Power Core Fission Core Propulsion Light Treads Treads Light Treads Flight Unit Improved VTOL Module Utility Hacking Suite Device Seismic Detector Storage High-capacity Storage Unit Processor Rainbow Chip Hackware Hacking Suite Protection Improved Light Armor Plating Weapon Cooled Particle Cannon Energy Gun Medium Laser Energy Cannon Cooled Particle Cannon Ballistic Gun Autogun Ballistic Cannon Flak Cannon Launcher Advanced EMP Blaster Impact Weapon Great Maul Slashing Weapon Ripper Special Melee Weapon Improved Datajack Build | -11 -10 -10 -8 -8 -8 -7 -7 -7 -7 -7 -7 -6 -6 -6 ------- Run | Yrd Mat Sub Mat Gar Mat Fac Was Fac Low Low Dat Pro Fac Ext Slots Evolved 8 | . . . 4 . . 2 . . . . . . 2 . Power . | . . . . . . . . . . . . . . . Propulsion 3 | . . . 1 . . 2 . . . . . . . . Utility 4 | . . . 2 . . . . . . . . . 2 . Weapon 1 | . . . 1 . . . . . . . . . . . Parts Attached 89 | 7 6 2 30 3 4 3 3 3 . 4 . 2 4 18 Power 12 | 1 2 . 2 1 . . . 1 . 1 . . . 4 Engine 8 | 1 2 . 2 1 . . . 1 . . . . . 1 Core 4 | . . . . . . . . . . 1 . . . 3 Reactor . | . . . . . . . . . . . . . . . Propulsion 23 | 2 1 1 7 1 3 3 . . . . . 1 . 4 Treads 14 | 2 1 1 5 1 . . . . . . . . . 4 Leg . | . . . . . . . . . . . . . . . Wheel . | . . . . . . . . . . . . . . . Hover . | . . . . . . . . . . . . . . . Flight 9 | . . . 2 . 3 3 . . . . . 1 . . Utility 22 | 2 2 . 6 . . . 2 1 . 3 . . 4 2 Device 7 | 1 . . 1 . . . 2 . . 2 . . 1 . Storage 5 | 1 1 . 2 . . . . . . . . . . 1 Processor 6 | . 1 . 2 . . . . . . 1 . . 2 . Hackware 3 | . . . 1 . . . . 1 . . . . 1 . Protection 1 | . . . . . . . . . . . . . . 1 Artifact . | . . . . . . . . . . . . . . . Weapon 32 | 2 1 1 15 1 1 . 1 1 . . . 1 . 8 Energy Gun 7 | . 1 . 3 . . . . . . . . . . 3 Energy Cannon 4 | . . . 3 . . . . . . . . . . 1 Ballistic Gun 9 | 2 . . 6 . . . . . . . . . . 1 Ballistic Cannon 4 | . . 1 2 . . . . . . . . 1 . . Launcher 3 | . . . . . 1 . 1 1 . . . . . . Special Weapon . | . . . . . . . . . . . . . . . Impact Weapon 1 | . . . 1 . . . . . . . . . . . Slashing Weapon 3 | . . . . . . . . . . . . . . 3 Piercing Weapon . | . . . . . . . . . . . . . . . Special Melee Weapon 1 | . . . . 1 . . . . . . . . . . Unidentified Prototypes 9 | . . . 6 . . . . 3 . . . . . . Parts Lost 48 | . 3 2 1 3 3 . . 3 3 . . 4 4 22 Power 8 | . 1 . . 1 . . . 1 . . . 1 . 4 Propulsion 18 | . 1 1 . 1 3 . . 1 1 . . 2 1 7 Utility 6 | . 1 . . . . . . . 1 . . . 1 3 Weapon 16 | . . 1 1 1 . . . 1 1 . . 1 2 8 Highest Loss Streak 12 | . 2 1 1 1 3 . . 2 3 . . 4 4 12 To Critical Strikes 1 | . . . . . 1 . . . . . . . . . Average Backups 9 | 1 2 3 11 19 19 14 7 5 4 4 5 4 2 5 Power . | . . . . 1 1 1 . . . . . . . 1 Propulsion 2 | . . . 2 6 5 1 1 1 . . 1 . . . Utility 4 | . 1 2 3 6 8 8 5 4 3 3 3 3 1 3 Weapon 2 | . . . 4 4 4 3 . . . . . . . . Tool/Special . | . . . . . . . . . . . . . . . Unused Backups 16 | . . . 6 1 . 1 4 1 1 . . . . 2 Power 1 | . . . . . . . 1 . . . . . . . Propulsion 3 | . . . 1 1 . 1 . . . . . . . . Utility 8 | . . . 1 . . . 3 1 1 . . . . 2 Weapon 3 | . . . 3 . . . . . . . . . . . Tool/Special 1 | . . . 1 . . . . . . . . . . . Average Slot Usage (%) 92 | . 97 88 92 99 99 99 97 95 98 88 92 97 76 75 Engine 8 | . 13 14 12 8 8 7 7 3 7 1 . . . . Treads 18 | . 26 23 24 24 19 . . . . . . . . 15 Flight 6 | . . . . . 4 34 35 35 35 35 35 35 23 . Device 2 | . 8 . 2 . . . 10 8 7 2 . . 4 . Storage 7 | . 14 14 6 7 8 7 2 . . . . . . 5 Processor 16 | . 3 14 15 22 25 21 15 14 14 14 21 21 25 20 Hackware 5 | . . . 3 7 8 7 7 12 14 14 14 14 11 6 Energy Gun 4 | . 13 14 5 . . . . . . . . . . 4 Energy Cannon 4 | . . . . 14 15 14 2 . . . . . . . Ballistic Gun 5 | . 14 2 10 . . . . . . . . . . 4 Ballistic Cannon 2 | . . 5 6 5 . . . . . . . 5 . . Impact Weapon 3 | . . . 2 6 8 7 7 7 7 7 7 7 4 . Peak Build Rating 68 | 7 7 9 55 55 56 65 68 65 64 59 58 64 58 43 Average Rating 37 | 5 6 6 39 49 49 64 64 61 62 55 58 61 52 36 On Entrance 42 | . 7 7 9 55 48 56 65 65 64 55 58 58 50 36 Avg Prop Armor Cover (%) 1 | . . . . . . . . . . . . 1 . . Naked Turns . | . . . . . . . . . . . . . . . Heaviest Build 80 | 12 19 20 80 80 71 71 26 26 23 16 12 21 6 47 Greatest Support 80 | 40 40 40 80 80 60 27 27 27 27 27 27 27 20 66 Greatest Overweight (x) 4 | . . . 1 1 4 2 . 1 . . . . . 3 Average Overweight (x) . | . . . . . 1 2 . . . . . . . . Largest Inventory Capacity 20 | 8 10 10 20 20 20 20 20 5 5 5 5 5 5 15 Average Capacity 13 | 7 8 10 15 20 20 20 7 5 5 5 5 5 5 13 Most Carried 20 | 2 4 4 20 20 20 17 14 5 5 5 5 5 5 8 Average Carried 10 | 1 2 3 11 19 19 14 6 5 4 4 5 4 2 5 Final Capacity 20 | 8 10 10 20 20 20 20 5 5 5 5 5 5 5 15 Final Carried 20 | 2 3 4 20 20 18 15 5 5 4 5 5 4 5 4 Class Distribution -------------------- 40% | Mutant 32% | Gunner 11% | Hacker-Sprinter 7% | Commander-Mutant 6% | Scientist-Gunner Dominant Class ---------------- Mutant | -10/Materials Mutant | -10/Subcaves Gunner | -8/Materials Gunner | -8/Garrison Mutant | -8/Materials Mutant | -7/Factory Scientist-Sprinter | -7/Waste Hacker-Sprinter | -7/Factory Hacker-Sprinter | -7/Lower Caves Hacker-Sprinter | -7/Lower Caves Hacker-Sprinter | -7/Data Miner Hacker-Sprinter | -6/Proximity Caves Hacker-Sprinter | -6/Factory Commander-Mutant | -6/Extension Resources | -11 -10 -10 -8 -8 -8 -7 -7 -7 -7 -7 -7 -6 -6 -6 ----------- Run | Yrd Mat Sub Mat Gar Mat Fac Was Fac Low Low Dat Pro Fac Ext Matter Collected 2555 | 350 204 58 1149 329 . . 157 30 . 60 . 20 40 158 Remotely . | . . . . . . . . . . . . . . . Salvage Created 3335 | 147 643 230 941 690 266 . . . . . . . 156 262 Parts 187 | 11 38 14 63 32 16 . . . . . . . 3 10 Haulers Intercepted 7 | . 1 . 5 . 1 . . . . . . . . . Recyclers Shooed 3 | 1 . . 1 . . . . . . . . . . 1 Parts Field Recycled . | . . . . . . . . . . . . . . . Retrieved Matter . | . . . . . . . . . . . . . . . Parts Self-Destructed 17 | . . 17 . . . . . . . . . . . . Prevented . | . . . . . . . . . . . . . . . Parts Restored . | . . . . . . . . . . . . . . . Kills | -11 -10 -10 -8 -8 -8 -7 -7 -7 -7 -7 -7 -6 -6 -6 ------- Run | Yrd Mat Sub Mat Gar Mat Fac Was Fac Low Low Dat Pro Fac Ext Combat Hostiles Destroyed 76 | . 14 6 22 19 8 . . . . . . . 3 4 Melee 7 | . . . . 2 . . . . . . . . 1 4 Guns 31 | . 14 6 11 . . . . . . . . . . . Cannons 30 | . . . 11 16 3 . . . . . . . . . AOE 5 | . . . . . 5 . . . . . . . . . Classes Destroyed 11 | 3 4 2 2 . . . . . . . . . . . Worker 3 | 2 . . 1 . . . . . . . . . . . Tunneler 5 | 2 1 . . . 2 . . . . . . . . . Hauler 7 | . 1 . 5 . 1 . . . . . . . . . Recycler 4 | 1 1 . 2 . . . . . . . . . . . Watcher 8 | . 3 . 1 3 . . . . . . . . . 1 Swarmer 24 | . 5 1 8 5 5 . . . . . . . . . Grunt 36 | . 9 3 6 9 2 . . . . . . . 3 4 Duelist 1 | . . . 1 . . . . . . . . . . . Sentry 7 | . . 1 5 1 . . . . . . . . . . Hunter 7 | . . . 2 4 1 . . . . . . . . . Subdweller 1 | . . 1 . . . . . . . . . . . . Best Kill Streak 8 | 4 5 2 3 6 8 . . . . . . . 3 2 Combat Bots Only 6 | . 3 2 3 6 6 . . . . . . . 3 2 Max Kills in Single Turn 3 | 1 1 1 1 1 3 . . . . . . . 1 1 Gunslinging . | . . . . . . . . . . . . . . . Exploded 3 | . . . . . 3 . . . . . . . . . Melee 1 | . . . . 1 . . . . . . . . 1 1 Uniques/NPCs Destroyed . | . . . . . . . . . . . . . . . Combat | -11 -10 -10 -8 -8 -8 -7 -7 -7 -7 -7 -7 -6 -6 -6 -------- Run | Yrd Mat Sub Mat Gar Mat Fac Was Fac Low Low Dat Pro Fac Ext Hostile Shots Fired 662 | . 73 22 85 69 45 . . 2 39 . . 58 35 234 Missed 231 | . 17 7 26 23 16 . . 2 20 . . 29 19 72 Hits 431 | . 56 15 59 46 29 . . . 19 . . 29 16 162 Melee 3 | . . . 3 . . . . . . . . . . . Projectile 428 | . 56 15 56 46 29 . . . 19 . . 29 16 162 AOE 1 | . . . . . . . . 1 . . . . . . Critical Strikes 7 | . 1 . . . 2 . . . 1 . . . 2 1 Part Disruptions 1 | . . . . . . . . . . . . 1 . . Damage Taken 6299 | . 640 165 882 698 350 . . 165 316 . . 480 281 2322 Core 1689 | . 108 53 188 167 65 . . 6 79 . . 151 112 760 Absorbed by Shields 31 | . . . 31 . . . . . . . . . . . Core Remaining (%) 56 | 100 . 35 . . 23 . . . . . . 66 . . Volleys Fired 209 | 20 58 15 57 34 10 . . . 5 . . . . 10 Largest 4 | 2 2 2 4 3 2 . . . 1 . . . . 2 Hottest 180 | 40 70 83 176 97 180 . . . 36 . . . . 160 Shots Fired 520 | 40 116 25 195 100 20 . . . 5 . . . . 19 Gun 323 | 40 116 21 132 . . . . . . . . . . 14 Cannon 188 | . . 4 63 100 16 . . . . . . . . 5 Launcher 9 | . . . . . 4 . . . 5 . . . . . Special . | . . . . . . . . . . . . . . . Kinetic 282 | 40 58 10 141 32 . . . . . . . . . 1 Thermal 229 | . 58 15 54 68 16 . . . . . . . . 18 Explosive 4 | . . . . . 4 . . . . . . . . . Electromagnetic 5 | . . . . . . . . . 5 . . . . . Robot Hit Streak 16 | 9 15 15 16 12 9 . . . 3 . . . . 9 Robot Miss Streak 6 | 2 4 1 6 4 2 . . . 2 . . . . 1 Penetration Max . | . . . . . . . . . . . . . . . Secondary Targets 1 | . 1 . . . . . . . . . . . . . Max Gunslinging Chain 1 | . 1 . . . . . . . . . . . . . Shots Hit Robots 377 | 28 80 17 115 72 12 . . 1 3 . . . 9 40 Core Hits 192 | 9 33 11 68 41 11 . . . 3 . . . 1 15 Critical Kills 1 | . . . . 1 . . . . . . . . . . Critical Parts Destroyed 5 | . . . . 3 . . . . . . . . 2 . Critical Strikes 16 | . 3 1 3 4 . . . . . . . . 2 3 Burn 4 | . 3 . 1 . . . . . . . . . . . Blast 3 | . . 1 2 . . . . . . . . . . . Smash 6 | . . . . 4 . . . . . . . . 2 . Sever 3 | . . . . . . . . . . . . . . 3 Melee Attacks 90 | . . . 2 39 . 8 . 6 . . . . 10 25 Impact 60 | . . . 2 34 . 8 . 6 . . . . 10 . Slashing 25 | . . . . . . . . . . . . . . 25 Piercing . | . . . . . . . . . . . . . . . Sneak Attacks 11 | . . . 1 7 . . . . . . . . . 3 Combat Hostiles . | . . . . . . . . . . . . . . . Follow-up Attacks . | . . . . . . . . . . . . . . . Damage Inflicted 8227 | 303 1041 215 1940 1925 772 . . 43 68 . . . 444 1476 Guns 2995 | 303 1041 192 1057 . . . . . . . . . . 402 Cannons 3006 | . . 23 826 1658 358 . . . . . . . . 141 Explosions 482 | . . . . . 414 . . . 68 . . . . . Melee 1744 | . . . 57 267 . . . 43 . . . . 444 933 Ramming . | . . . . . . . . . . . . . . . Kinetic 2776 | 303 467 80 1435 472 . . . . . . . . . 19 Thermal 3225 | . 574 135 448 1186 358 . . . . . . . . 524 Explosive 414 | . . . . . 414 . . . . . . . . . Electromagnetic 68 | . . . . . . . . . 68 . . . . . Impact 811 | . . . 57 267 . . . 43 . . . . 444 . Slashing 933 | . . . . . . . . . . . . . . 933 Piercing . | . . . . . . . . . . . . . . . Highest Corruption 2 | . . . . . . . . . . . . 1 . 2 Average Corruption 1 | . . . . . . . . . . . . 1 . 2 Corruption Purged . | . . . . . . . . . . . . . . . Corruption Blocked . | . . . . . . . . . . . . . . . Effects 1 | . . . . . . . . . . . . . . 1 Matter Fused 1 | . . . . . . . . . . . . . . 1 Overload Shots 2 | . . . . . 2 . . . . . . . . . Overflow Damage 392 | . . . . 181 33 . . . . . . . 100 78 Projectiles 19 | . . . . 11 8 . . . . . . . . . Explosions 25 | . . . . . 25 . . . . . . . . . Melee 348 | . . . . 170 . . . . . . . . 100 78 Knockbacks 36 | . . . 18 13 . . . 1 . . . . 4 . Impact 5 | . . . . . . . . 1 . . . . 4 . Kinetic 29 | . . . 17 12 . . . . . . . . . . Secondary 2 | . . . 1 1 . . . . . . . . . . Self-Inflicted Damage 11 | . . . . . 11 . . . . . . . . . Shots 2 | . . . . . 2 . . . . . . . . . Rammed 1 | . . . . . . . . . . . . . . 1 Targets Rammed 1 | . . . . . . . . . . . . . . 1 Kicked . | . . . . . . . . . . . . . . . Crushed . | . . . . . . . . . . . . . . . Highest Temperature 640 | . 192 . 640 203 111 . . . 8 4 4 25 . 496 Average Temperature 107 | . 54 . 156 59 64 . . . 8 2 2 8 . 276 Received Heat Transfer 1644 | . 330 45 147 234 81 . . 12 33 . . 57 117 588 Effects 20 | . . . 19 . . . . . . . . . . 1 Shutdowns 5 | . . . 5 . . . . . . . . . . . Energy Bleed 4 | . . . 4 . . . . . . . . . . . Interference 5 | . . . 5 . . . . . . . . . . . Matter Decay 1 | . . . 1 . . . . . . . . . . . Short Circuit 1 | . . . 1 . . . . . . . . . . . Damage (minor) 3 | . . . 2 . . . . . . . . . . 1 Damage (core) 1 | . . . 1 . . . . . . . . . . . Siege Activations . | . . . . . . . . . . . . . . . Martial Activations . | . . . . . . . . . . . . . . . Shielding Activations . | . . . . . . . . . . . . . . . Robots Disrupted . | . . . . . . . . . . . . . . . Combat Hostiles . | . . . . . . . . . . . . . . . Robots Corrupted 6 | . . . . 4 . . . . . . . . 2 . Combat Hostiles 3 | . . . . 1 . . . . . . . . 2 . Parts Fried 6 | . . . . 6 . . . . . . . . . . Impact Corruptions 11 | . . . . 6 . . . . . . . . 5 . Robots Melted . | . . . . . . . . . . . . . . . Combat Hostiles . | . . . . . . . . . . . . . . . Parts Melted 7 | . 6 . 1 . . . . . . . . . . . Heat Transferred 6420 | . 1924 407 1147 1473 433 . . . . . . . . 1036 Parts Sabotaged . | . . . . . . . . . . . . . . . Parts Stolen . | . . . . . . . . . . . . . . . Parts Stripped . | . . . . . . . . . . . . . . . Power Chain Reactions . | . . . . . . . . . . . . . . . Alert | -11 -10 -10 -8 -8 -8 -7 -7 -7 -7 -7 -7 -6 -6 -6 ------- Run | Yrd Mat Sub Mat Gar Mat Fac Was Fac Low Low Dat Pro Fac Ext Maximum Alert Level 3 | . . . 1 3 2 1 . . . . . . . . Low Security (%) 73 | 100 100 . 98 13 . 28 100 100 . . . . 100 100 Level 1 6 | . . . 1 8 . 71 . . . . . . . . Level 2 9 | . . . . 28 100 . . . . . . . . . Level 3 9 | . . . . 49 . . . . . . . . . . Level 4 . | . . . . . . . . . . . . . . . Level 5 . | . . . . . . . . . . . . . . . High Security . | . . . . . . . . . . . . . . . Max Security . | . . . . . . . . . . . . . . . Peak Influence 1078 | 15 159 . 214 1078 676 330 93 81 . . . . 55 108 Initial 525 | . . . 16 87 525 280 93 51 . . . . . 7 Average 209 | 1 53 . 83 662 538 235 83 22 . . . . 6 25 Influence Increases 3455 | 25 401 140 699 1061 261 208 . 46 . . . . 121 493 Destroy 0b10 Robot/C 1780 | . 280 100 440 500 160 . . . . . . . 60 240 Destroy 0b10 Robot/NC 150 | 25 30 . 45 20 15 . . . . . . . . 15 Destroy Leader 276 | . 58 10 132 20 32 . . . . . . . . 24 Allied During Kill 195 | . . . . 45 . . . . . . . . . 150 Successful Hack 64 | . . . 20 24 6 . . 14 . . . . . . Disable Machine 60 | . . . 30 30 . . . . . . . . . . Anti-Garrison Action 450 | . . . . 250 . 200 . . . . . . . . Destroy Structure 165 | . 3 . 2 97 48 8 . 2 . . . . 1 4 Partial Spotted 165 | . 15 . 15 . . . . 30 . . . . 45 60 Lose Combat Pursuer 150 | . 15 30 15 75 . . . . . . . . 15 . Influence Decreases 3455 | 25 316 193 597 117 723 558 193 119 . . . . 104 510 Entered New Map 1198 | . . 41 16 47 553 336 173 22 . . . . . 10 Time Decay 1776 | 25 286 132 571 . 140 222 20 72 . . . . 64 244 Lost Part 321 | . 30 20 10 30 30 . . 25 . . . . 40 136 Lost Ally 160 | . . . . 40 . . . . . . . . . 120 Squads Dispatched 12 | . 2 . 5 . . 1 . . . . . . 1 3 Investigation 5 | . 1 . 2 . . 1 . . . . . . . 1 Extermination 1 | . . . . . . . . . . . . . 1 . Reinforcement 6 | . 1 . 3 . . . . . . . . . . 2 Assault . | . . . . . . . . . . . . . . . Garrison . | . . . . . . . . . . . . . . . Intercept . | . . . . . . . . . . . . . . . Searches Triggered . | . . . . . . . . . . . . . . . Data Miner Redirects 1 | . . . . . . . . . . . . . . 1 Construction Impeded 1 | . . . . . . . . . . . . . . 1 Haulers Reinforced . | . . . . . . . . . . . . . . . Active Scanning Responses . | . . . . . . . . . . . . . . . Cargo Convoy Interrupts . | . . . . . . . . . . . . . . . Stealth | -11 -10 -10 -8 -8 -8 -7 -7 -7 -7 -7 -7 -6 -6 -6 --------- Run | Yrd Mat Sub Mat Gar Mat Fac Was Fac Low Low Dat Pro Fac Ext Distress Signals 11 | . 3 . 8 . . . . . . . . . . . Communications Jammed . | . . . . . . . . . . . . . . . Distress Signals . | . . . . . . . . . . . . . . . Times Spotted 157 | . 21 8 28 28 9 . . 4 12 . . 19 7 21 Peak Tracking Total 19 | . 3 2 4 4 6 . . 2 12 . . 19 4 6 Tactical Retreats 7 | . 1 1 1 3 . . . . . . . . 1 . Traps | -11 -10 -10 -8 -8 -8 -7 -7 -7 -7 -7 -7 -6 -6 -6 ------- Run | Yrd Mat Sub Mat Gar Mat Fac Was Fac Low Low Dat Pro Fac Ext Traps Triggered 7 | . 1 . . 3 . 1 . 1 . . . . . 1 Indirectly . | . . . . . . . . . . . . . . . Trap Hack Attempts . | . . . . . . . . . . . . . . . Triggered . | . . . . . . . . . . . . . . . Disarmed . | . . . . . . . . . . . . . . . Reprogrammed . | . . . . . . . . . . . . . . . Reused . | . . . . . . . . . . . . . . . Traps Extracted . | . . . . . . . . . . . . . . . Installed . | . . . . . . . . . . . . . . . Triggered . | . . . . . . . . . . . . . . . Machines | -11 -10 -10 -8 -8 -8 -7 -7 -7 -7 -7 -7 -6 -6 -6 ---------- Run | Yrd Mat Sub Mat Gar Mat Fac Was Fac Low Low Dat Pro Fac Ext Machines Disabled 8 | . . 1 2 5 . . . . . . . . . . Max in Single Turn 1 | . . 1 1 1 . . . . . . . . . . Garrison Access 2 | . . . . . . 1 . 1 . . . . . . Garrison Relay 3 | . . . . 3 . . . . . . . . . . Machines Repaired . | . . . . . . . . . . . . . . . Machines Dismantled . | . . . . . . . . . . . . . . . Machines Sabotaged . | . . . . . . . . . . . . . . . Overloaded Fab Kills . | . . . . . . . . . . . . . . . Hacking | -11 -10 -10 -8 -8 -8 -7 -7 -7 -7 -7 -7 -6 -6 -6 --------- Run | Yrd Mat Sub Mat Gar Mat Fac Was Fac Low Low Dat Pro Fac Ext Machines Accessed 27 | . 1 1 5 5 3 4 . 2 . 1 3 1 . 1 Terminals 14 | . 1 . 2 5 2 1 . 1 . . . 1 . 1 Fabricators 1 | . . . . . . 1 . . . . . . . . Repair Stations . | . . . . . . . . . . . . . . . Recycling Units . | . . . . . . . . . . . . . . . Scanalyzers 4 | . . . 2 . 1 1 . . . . . . . . Garrison Access 3 | . . . 1 . . 1 . 1 . . . . . . Total Hacks 71 | . 2 1 16 9 6 6 . 4 . 1 23 1 . 2 Successful 48 | . 1 1 10 3 4 2 . 2 . 1 23 1 . . Failed 22 | . 1 . 5 6 2 4 . 2 . . . . . 2 Catastrophic 5 | . . . 1 . 1 2 . . . . . . . 1 Database Lockouts 1 | . . . 1 . . . . . . . . . . . Manual 16 | . 2 . 6 . 4 2 . . . . . . . 2 Terminals 28 | . 2 . 6 9 4 2 . 2 . . . 1 . 2 Fabricators 1 | . . . . . . 1 . . . . . . . . Repair Stations . | . . . . . . . . . . . . . . . Recycling Units . | . . . . . . . . . . . . . . . Scanalyzers 12 | . . . 8 . 2 2 . . . . . . . . Garrison Access 5 | . . . 2 . . 1 . 2 . . . . . . Terminal Hacks 33 | . . 1 1 3 2 . . 1 . 1 23 1 . . Record 6 | . . . . . . . . . . . 6 . . . Part Schematic 10 | . . . . . . . . . . . 10 . . . Robot Schematic 4 | . . . . . . . . . . . 4 . . . Prototype ID Bank 3 | . . . . . . . . . . . 3 . . . Open Door 3 | . . . . 1 . . . . . 1 . 1 . . Level Access Points 1 | . . . . . 1 . . . . . . . . . Branch Access Points 3 | . . . 1 . 1 . . 1 . . . . . . Emergency Access Points 1 | . . . . 1 . . . . . . . . . . Garrison Registry 1 | . . . . 1 . . . . . . . . . . Proto ID Catalog 1 | . . 1 . . . . . . . . . . . . Fabricator Hacks . | . . . . . . . . . . . . . . . Repair Station Hacks . | . . . . . . . . . . . . . . . Recycling Unit Hacks . | . . . . . . . . . . . . . . . Scanalyzer 10 | . . . 7 . 2 1 . . . . . . . . Retrieve Study 10 | . . . 7 . 2 1 . . . . . . . . Garrison Access Hacks 2 | . . . 1 . . . . 1 . . . . . . Unlock Access 1 | . . . 1 . . . . . . . . . . . Seal Access 1 | . . . . . . . . 1 . . . . . . Unauthorized Hacks 3 | . 1 . 1 . . 1 . . . . . . . . Terminals 2 | . 1 . 1 . . . . . . . . . . . Botnet 2 | . 1 . 1 . . . . . . . . . . . Fabricators . | . . . . . . . . . . . . . . . Repair Stations . | . . . . . . . . . . . . . . . Recycling Units . | . . . . . . . . . . . . . . . Scanalyzers . | . . . . . . . . . . . . . . . Garrison Access 1 | . . . . . . 1 . . . . . . . . Jam 1 | . . . . . . 1 . . . . . . . . Data Cores Recovered . | . . . . . . . . . . . . . . . Used . | . . . . . . . . . . . . . . . Hacking Detections 14 | . 1 . 4 4 . 3 . 1 . . . . . 1 Full Trace Events 3 | . . . 2 . . . . . . . . . . 1 Feedback Events . | . . . . . . . . . . . . . . . Feedback Blocked . | . . . . . . . . . . . . . . . Robot Schematics Acquired 4 | . . . . . . . . . . . 4 . . . Robots Built . | . . . . . . . . . . . . . . . Authchips . | . . . . . . . . . . . . . . . Time . | . . . . . . . . . . . . . . . Total Robot Build Rating . | . . . . . . . . . . . . . . . Part Schematics Acquired 10 | . . . . . . . . . . . 10 . . . Parts Built . | . . . . . . . . . . . . . . . Authchips . | . . . . . . . . . . . . . . . Time . | . . . . . . . . . . . . . . . Total Part Build Rating . | . . . . . . . . . . . . . . . Part Studies Acquired 10 | . . . 7 . 2 1 . . . . . . . . Parts Repaired . | . . . . . . . . . . . . . . . Time . | . . . . . . . . . . . . . . . Parts Recycled . | . . . . . . . . . . . . . . . Recycled Matter . | . . . . . . . . . . . . . . . Retrieved Matter . | . . . . . . . . . . . . . . . Retrieved Components . | . . . . . . . . . . . . . . . Parts Scanalyzed . | . . . . . . . . . . . . . . . Part Schematics Acquired . | . . . . . . . . . . . . . . . Parts Damaged . | . . . . . . . . . . . . . . . Bothacking | -11 -10 -10 -8 -8 -8 -7 -7 -7 -7 -7 -7 -6 -6 -6 ------------ Run | Yrd Mat Sub Mat Gar Mat Fac Was Fac Low Low Dat Pro Fac Ext Used RIF Installer . | . . . . . . . . . . . . . . . Robots Hacked 2 | . . . . 2 . . . . . . . . . . Non-combat . | . . . . . . . . . . . . . . . Combat 2 | . . . . 2 . . . . . . . . . . Robot Hacks Applied 2 | . . . . 2 . . . . . . . . . . parse_system 2 | . . . . 2 . . . . . . . . . . Relay Couplers Released 12 | . . . . 12 . . . . . . . . . . Machine Destruction 12 | . . . . 12 . . . . . . . . . . Fabnet Peak Effective % . | . . . . . . . . . . . . . . . Robots Rewired 16 | . . . . 2 . . . . . . . . . 14 Allies Hacked . | . . . . . . . . . . . . . . . Hacks Repelled . | . . . . . . . . . . . . . . . Allies | -11 -10 -10 -8 -8 -8 -7 -7 -7 -7 -7 -7 -6 -6 -6 -------- Run | Yrd Mat Sub Mat Gar Mat Fac Was Fac Low Low Dat Pro Fac Ext Total Allies 18 | . . . . 2 . . . . . . . 1 . 15 Largest Group 11 | . . . . 2 . . . . . . . . . 11 Highest-Rated Group 293 | . . . . 51 . . . . . . . . . 293 Highest-Rated Ally 39 | . . . . 31 . . . . . . . . . 39 Initial Warlord ECA Mod 5 | . . . . . 5 4 4 4 4 4 4 3 3 3 Total Orders . | . . . . . . . . . . . . . . . Ally Attacks 79 | . . . . 20 . . . . . . . . . 59 Total Damage 1691 | . . . . 528 . . . . . . . . . 1163 Kills 17 | . . . . 7 . . . . . . . . . 10 Allies Corrupted . | . . . . . . . . . . . . . . . Allies Melted . | . . . . . . . . . . . . . . . Intel | -11 -10 -10 -8 -8 -8 -7 -7 -7 -7 -7 -7 -6 -6 -6 ------- Run | Yrd Mat Sub Mat Gar Mat Fac Was Fac Low Low Dat Pro Fac Ext Active Infowar (turns) 1186 | 40 829 . . . . . . . . . . . 317 . Terrain 317 | . . . . . . . . . . . . . 317 . Seismic 869 | 40 829 . . . . . . . . . . . . . Robot Analysis Total . | . . . . . . . . . . . . . . . Derelict Logs Recovered 3 | . . 1 . . . . . . . 1 . 1 . . Drone Launches . | . . . . . . . . . . . . . . . Drone Recoveries . | . . . . . . . . . . . . . . . Exploration | -11 -10 -10 -8 -8 -8 -7 -7 -7 -7 -7 -7 -6 -6 -6 ------------- Run | Yrd Mat Sub Mat Gar Mat Fac Was Fac Low Low Dat Pro Fac Ext Turns Passed 7706 | 208 1299 409 1952 1426 293 477 53 215 93 69 19 71 419 703 Spaces Moved 5116 | 87 655 225 1038 622 115 263 176 375 212 253 78 280 385 352 Core 24 | 6 . . . . . . . . . . . . . 18 Treads 3016 | 81 655 225 1038 622 97 . . . . . . . . 298 Legs . | . . . . . . . . . . . . . . . Wheels . | . . . . . . . . . . . . . . . Hover . | . . . . . . . . . . . . . . . Flight 2076 | . . . . . 18 263 176 375 212 253 78 280 385 36 Fastest Speed 24 | 50 160 160 160 160 200 163 24 24 24 24 24 24 26 29 Average Speed 117 | 152 160 160 160 191 217 166 24 24 24 24 24 24 27 141 Slowest Speed 309 | 160 160 160 240 200 309 168 24 99 24 24 24 27 29 200 Overloaded Moves . | . . . . . . . . . . . . . . . Propulsion Burnouts . | . . . . . . . . . . . . . . . Robots Hopped 9 | . . . . . . . . 1 2 . . 5 1 . Potential Cave-ins . | . . . . . . . . . . . . . . . Cave-ins Triggered . | . . . . . . . . . . . . . . . Exploration Rate (%) 39 | 5 86 18 70 70 22 7 68 11 39 36 68 39 14 44 Regions Visited 14 Branch Regions 6 Pre-discovered Areas 3 | . . 1 . . . . . . 1 . 1 . . . Known Exits Taken 8 | . . . 1 . 1 . . 1 1 1 1 1 1 . Unknown Exits Taken 3 | 1 1 1 . . . . . . . . . . . . Scrap Searched 4 | . . 1 . . . . . . . 2 . 1 . . Spaces Dug 18 | . . . . 7 . 8 . 2 . . . . 1 . Terrain Destroyed 66 | . . . . 7 48 8 . 2 . . . . 1 . Melee 18 | . . . . 7 . 8 . 2 . . . . 1 . Projectile 2 | . . . . . 2 . . . . . . . . . AOE 46 | . . . . . 46 . . . . . . . . . Terrain Rammed . | . . . . . . . . . . . . . . . Walls Destroyed . | . . . . . . . . . . . . . . . Machines Disabled . | . . . . . . . . . . . . . . . Actions | -11 -10 -10 -8 -8 -8 -7 -7 -7 -7 -7 -7 -6 -6 -6 --------- Run | Yrd Mat Sub Mat Gar Mat Fac Was Fac Low Low Dat Pro Fac Ext Total 6214 | 123 790 248 1208 716 138 288 192 486 246 261 77 276 674 491 Wait 515 | 8 66 6 25 3 8 7 . 83 29 . . . 270 10 Move 5088 | 86 654 224 1038 621 114 263 175 372 208 252 77 270 382 352 Hop 7 | . . . . . . . . 1 1 . . 4 1 . Pick Up 43 | 2 2 1 21 4 1 3 . 1 1 1 . . 3 3 Fast Attach 56 | 7 3 2 20 . . . 1 5 . 3 . 1 1 13 Attach 22 | . 1 . 2 . 3 2 3 . 1 1 . 1 3 5 Detach 16 | . 1 . 8 . . . 3 . . 2 . . 2 . Swap 24 | . 2 . 11 5 2 1 . . . . . . 2 1 Drop 53 | . 3 . 24 6 . 4 10 3 1 2 . . . . Fire 209 | 20 58 15 57 34 10 . . . 5 . . . . 10 Melee 90 | . . . 2 39 . 8 . 6 . . . . 10 25 Ram . | . . . . . . . . . . . . . . . Kick . | . . . . . . . . . . . . . . . Crush 1 | . . . . . . . . . . . . . . 1 Escape Stasis 21 | . . . . 4 . . . 15 . . . . . 2 Rewire 69 | . . . . . . . . . . . . . . 69 Trap . | . . . . . . . . . . . . . . . Miscellaneous . | . . . . . . . . . . . . . . . Route ------- -11/Scrapyard -10/Materials (discovered 6 exits: [*Mat x3] / [*Min x2] / *Sub) -10/Subcaves -8/Materials (discovered 4 exits: *Fac x3 / Gar) -8/Garrison (discovered 3 exits: *Mat x3) -8/Materials (discovered 3 exits: *Fac x3) -7/Factory -7/Waste -7/Factory (discovered 2 exits: *Low x2) -7/Lower Caves -7/Lower Caves -7/Data Miner -6/Proximity Caves -6/Factory (discovered 3 exits: Low / *Ext x2) -6/Extension History --------- Turn | Location | Event 14 | -11/Scrapyard | Discovered new exit (range 13) 209 | -11/Scrapyard | Entered Materials 255 | -10/Materials | Discovered new exit (range 16) 303 | -10/Materials | Build established: Mutant 389 | -10/Materials | Discovered new exit (range 10) 543 | -10/Materials | Discovered new exit (range 16) 939 | -10/Materials | Discovered new exit (range 10) 1258 | -10/Materials | Discovered new exit (range 16) 1494 | -10/Materials | Discovered new exit (range 9) 1508 | -10/Materials | Entered Subcaves 1574 | -10/Subcaves | Core integrity fell below 50% 1666 | -10/Subcaves | Learned location of Zion (-6) 1723 | -10/Subcaves | Discovered new exit (range 12) 1736 | -10/Subcaves | Shifting Twisted Machinery released Battle Cannon 1738 | -10/Subcaves | Shifting Twisted Machinery released Battle Cannon 1740 | -10/Subcaves | A swath of the cavern ceiling suddenly collapsed 1793 | -10/Subcaves | Visited 4L-MR0's lab 1812 | -10/Subcaves | Found Rainbow Chip 1917 | -10/Subcaves | Entered Materials 1917 | -8/Materials | Evolved 4 slots: Propulsion x1, Utility x2, Weapon x1 1918 | -8/Materials | Attached Rainbow Chip, gained temporary slots: Power, Propulsion, Utility, Weapon 2263 | -8/Materials | Build established: Gunner 2551 | -8/Materials | Met 7R-MNS 2612 | -8/Materials | Discovered new exit (range 15) 3247 | -8/Materials | Identified exit to Factory 3461 | -8/Materials | Central database locked down 3466 | -8/Materials | Discovered exit to Factory (range 5) 3668 | -8/Materials | Discovered exit to Factory (range 5) 3756 | -8/Materials | Build established: Scientist-Gunner 3869 | -8/Materials | Identified exit to Garrison 3869 | -8/Materials | Entered Garrison 4058 | -8/Garrison | Triggered checkpoint 4121 | -8/Garrison | Triggered checkpoint 4146 | -8/Garrison | Discovered new exit (range 70) 4146 | -8/Garrison | Discovered new exit (range 74) 4146 | -8/Garrison | Discovered new exit (range 44) 4165 | -8/Garrison | Garrison Relay disabled 4361 | -8/Garrison | Build established: Gunner 4403 | -8/Garrison | Triggered checkpoint 4507 | -8/Garrison | Triggered checkpoint 4522 | -8/Garrison | Core integrity fell below 50% 4585 | -8/Garrison | Triggered checkpoint 4750 | -8/Garrison | Garrison Relay disabled 4981 | -8/Garrison | Triggered checkpoint 5024 | -8/Garrison | Garrison Relay disabled 5137 | -8/Garrison | Triggered checkpoint 5293 | -8/Garrison | Build established: Mutant 5293 | -8/Garrison | Identified exit to Materials 5295 | -8/Garrison | Entered Materials 5562 | -8/Materials | Lost 3 parts (3n) 5588 | -8/Materials | Entered Factory 5588 | -7/Factory | Evolved 2 slots: Propulsion x2 6065 | -7/Factory | Sucked down chute 6065 | -7/Factory | Entered Waste 6065 | -7/Waste | The area was eerily silent 6115 | -7/Waste | Discovered new exit (range 16) 6118 | -7/Waste | Identified exit to Factory 6118 | -7/Waste | Entered Factory 6131 | -7/Factory | Identified exit to Lower Caves 6333 | -7/Factory | Entered Lower Caves 6348 | -7/Lower Caves | Met a Warlord Commander 6349 | -7/Lower Caves | Learned location of Warlord (-4) 6350 | -7/Lower Caves | Warlord Commander delivered Encrypted Comm Array 6351 | -7/Lower Caves | Found Encrypted Comm Array 6369 | -7/Lower Caves | Spotted B-75 Beast 6425 | -7/Lower Caves | Discovered new exit (range 5) 6425 | -7/Lower Caves | Identified exit to Lower Caves 6426 | -7/Lower Caves | Entered another Lower Caves area 6455 | -7/Lower Caves | Learned location of 1 exit from Factory 6456 | -7/Lower Caves | Lost 3 parts (1n1u1w) 6457 | -7/Lower Caves | Found DCF Scrap (13 items) 6458 | -7/Lower Caves | Build established: Hacker-Sprinter 6490 | -7/Lower Caves | Discovered new exit (range 14) 6493 | -7/Lower Caves | Identified exit to Data Miner 6495 | -7/Lower Caves | Entered Data Miner 6495 | -7/Data Miner | Discovered new exit (range 6) 6500 | -7/Data Miner | Met Data Miner 6505 | -7/Data Miner | Learned location of Section 7 (-2) 6505 | -7/Data Miner | Acquired the access code to Warlord's prototype stash 6508 | -7/Data Miner | Received God Mode back door access code from Data Miner 6514 | -7/Data Miner | Identified exit to Proximity Caves 6514 | -7/Data Miner | Entered Proximity Caves 6515 | -6/Proximity Caves | Greeted by an Infiltrator in a former 0b10 base 6533 | -6/Proximity Caves | Former 0b10 base attacked by MAIN.C 6543 | -6/Proximity Caves | Attracted the attention of an 0b10 checkpoint 6548 | -6/Proximity Caves | Learned 12 Factory zone layouts 6571 | -6/Proximity Caves | Ambushed by research squad 6582 | -6/Proximity Caves | Discovered new exit (range 12) 6585 | -6/Proximity Caves | Identified exit to Factory 6585 | -6/Proximity Caves | Entered Factory 6585 | -6/Factory | Evolved 2 slots: Utility x2 6586 | -6/Factory | Identified exit to Extension 6587 | -6/Factory | Identified exit to Lower Caves 6613 | -6/Factory | Lost 4 parts (1p2n1w) 6943 | -6/Factory | Spotted B-75 Beast 6953 | -6/Factory | Lost 4 parts (1n1u2w) 7004 | -6/Factory | Entered Extension 7060 | -6/Extension | Core integrity fell below 50% 7082 | -6/Extension | Lost 6 parts (3n2u1w) 7201 | -6/Extension | Rescued a captive Derelict 7258 | -6/Extension | Lost 4 allies 7535 | -6/Extension | Build established: Commander-Mutant 7621 | -6/Extension | Incoming investigation squad redirected 7657 | -6/Extension | Spotted B-75 Beast 7696 | -6/Extension | Core integrity fell below 20% 7707 | -6/Extension | Destroyed by B-75 Beast with Heavy Plasma Cannon Last Messages --------------- 07651_ 1S-H6A(l) suffers critical hit (Blast). 07652_ Destroyed Hpw. Tractor Beam. 07658_ 1S-H6A(l) destroyed. 07662_ Machine disabled. 07676_ Field Laser destroyed. 07676_ Imp. Treads destroyed. 07677_ R-10 Processor collects Terrain Scanner. 07682_ Neutrino Core destroyed. 07685_ Imp. Light Armor Plating destroyed. 07688_ Lgt. Treads+ destroyed. 07691_ Overheating: Ripper damaged (-16). 07695_ Plasma Cannon destroyed. 07696_ Fission Core destroyed. 07698_ Gatling Laser destroyed. 07701_ Ripper destroyed. 07701_ Lgt. Treads+ destroyed. 07703_ Penetrated by Slug. 07703_ Imp. Deuterium Engine destroyed. 07704_ Penetrated by Slug. 07707_ Phasing Sabre destroyed. Map ----- +----------------------------------------------------+ | ?# #????# #???# ### #??????????????????????????? | | ##/###### #???## ##?# #??????????????????????????? | | % + #????# #??# #??????????????????????????? | | * * # #???## ##?# #??????????????????????????? | | = # ##### #?#=###????????????????????????? | | + #?#% T#????????????????????????? | | ########## #?# ""#????????????????????????? | | #????????#####?# ###????????????????????????? | | ######??????????????# #??????????????????????????? | | ??????????????###???# #??????????????????????????? | | ?????????????##T##### #??????????????????????????? | | ?????????????# # #??????????????????????????? | | ?????????????# """ # #??????????????????????????? | | ?????????????# ""R" /]#??????????????????????????? | | ?????????????#["" " # #??????????????????????????? | | ????????????##*! #%#??????????????????????????? | | ????????????# % [#[#??????????????????????????? | | ????????????###"T"###%#??????????????????????????? | | ??????????????#"""#?#g#?###?##???#???????????????? | | ??????????????#######o### ## ### ##??????????????? | | ?????????????????## "%" "" ""#?????????????? | | ????????????????##;% R " " #?????????????? | | ????????????????# ;% %% % R #?????????????? | | ??????????????????# % #?????????????? | | ?????????????????## #?????????????? | | ?????????? @ ????????? | | ????????? BB g ????????? | | ????????? BB g u ????????? | | ?????????? k g h?????????? | | ?????????? R A?????????? | | ??????????######### ####??????????? | | ??????????????????# #?????????????? | | ??????????????????# #?????????????? | | ??????????????????# #?????????????? | | ??????????????????# #?????????????? | | ??????????????????###;##T#"""#######?????????????? | | ????????????????????# ??#????????????????????????? | | ????????????????????? ???????????????????????????? | | | | | | | | | | | | | | | | | | | | | | | | | +----------------------------------------------------+ Best States ------------- Heat Dissipation 53 Energy Generation 24 Energy Capacity 320 Matter Stores 300 Matter Capacity 300 Sight Range 16 Terrain Scan Range 16 Terrain Scan Density 210 Corruption Containment 8 Armor Coverage 150 Resistance: EM 25 Evasion (%) 65 Targeting Accuracy 5 Target Analysis 6 Recoil Reduction 4 Offensive Hacking 20 Item Schematics ----------------- Combat Drone Bay | -7/Data Miner | Free Lgt. Regenerative Plating | -7/Data Miner | Free Cld. Aerolev Unit | -7/Data Miner | Free Gravity Neutralizer | -7/Data Miner | Free Imp. Heavy Laser | -7/Data Miner | Free Arm. Medium Treads | -7/Data Miner | Free Adv. Cooling System | -7/Data Miner | Free Mass Driver | -7/Data Miner | Free Adv. Sensor Array | -7/Data Miner | Free Hvy. Treads | -7/Data Miner | Free Robot Schematics ------------------ M-28 Smith | -7/Data Miner | Free M-14 Sweeper | -7/Data Miner | Free R-10 Processor | -7/Data Miner | Free Y-54 Guardian | -7/Data Miner | Free Fabricated ------------ Nothing Repaired ---------- Nothing Studied --------- Lgt. Treads | -8/Materials | Hacked Lgt. Deuterium Engine | -8/Materials | Hacked Flak Cannon | -8/Materials | Hacked Autogun | -8/Materials | Hacked Great Maul | -8/Materials | Hacked Hvy. Assault Rifle | -8/Materials | Hacked Beam Rifle | -8/Materials | Hacked Missile Launcher | -8/Materials | Hacked Imp. Datajack | -8/Materials | Hacked Nuclear Pulse Thruster | -7/Factory | Hacked Alien Tech Used ----------------- None Achievements -------------- None Challenges ------------ None Game ------ Seed TitaniumArcDiverter Manual? 0 Play Time 00:57:55 Cumulative 205.1 hours Start 2026.09.09 @ 00:27:48 End 2026.09.09 @ 01:26:29 Sessions 1 Manual Loads 0 Difficulty Rogue Special Mode None Game No. 399 Rogue 399 Adventurer 0 Explorer 0 Win Type - Total 2 Types 2/0/0/0/0/0/0/0/0/0 Lore% 61 Gallery% 62 Achievement% 48 Wizard Run 0 Options --------- Layout 2 ASCII 0 Keyboard 1 Movement Arrows Keybinds 0 Fullscreen 1 Font 24/Smallcaps Map View 50x44 Zoom Use 0% Tactical HUD 1 Map Filters NONE Filters NONE Steam 1 RUN: c95464e5-a11f-41bc-bcc8-9f599c0d2601